[Event "Titled Tuesday Blitz November 2 2021"]
[White "Hansen, Eric"]
[Black "Postny, Evgeny"]
[WhiteFideId "2606771"]
[BlackFideId "2804344"]
[WhiteElo "2568"]
[BlackElo "2521"]
[Result "1/2-1/2"]
[Round "08"]
[TimeControl "180+1"]
[Date "2021.11.02"]
[WhiteClock "0:00:16"]
[BlackClock "0:00:15"]

1. Nf3 {[%clk 0:02:59]}  Nf6 {[%clk 0:02:58]} 2. g3 {[%clk 0:02:59]}  c5 {[%clk 0:02:56]} 3. Bg2 {[%clk 0:02:59]}  Nc6 {[%clk 0:02:57]} 4. d4 {[%clk 0:02:56]}  cxd4 {[%clk 0:02:54]} 5. Nxd4 {[%clk 0:02:56]}  d5 {[%clk 0:02:54]} 6. c4 {[%clk 0:02:56]}  Nxd4 {[%clk 0:02:47]} 7. Qxd4 {[%clk 0:02:56]}  dxc4 {[%clk 0:02:47]} 8. Qxc4 {[%clk 0:02:28]}  e6 {[%clk 0:02:43]} 9. O-O {[%clk 0:02:25]}  Be7 {[%clk 0:02:42]} 10. Nc3 {[%clk 0:02:24]}  O-O {[%clk 0:02:41]} 11. Rd1 {[%clk 0:02:24]}  Qa5 {[%clk 0:02:40]} 12. Bf4 {[%clk 0:02:16]}  a6 {[%clk 0:02:25]} 13. a4 {[%clk 0:01:49]}  e5 {[%clk 0:02:08]} 14. Nd5 {[%clk 0:01:34]}  Nxd5 {[%clk 0:01:51]} 15. Rxd5 {[%clk 0:01:34]}  Be6 {[%clk 0:01:50]} 16. Rxa5 {[%clk 0:01:32]}  Bxc4 {[%clk 0:01:51]} 17. Rxe5 {[%clk 0:01:25]}  Bf6 {[%clk 0:01:50]} 18. Re4 {[%clk 0:01:21]}  Bd5 {[%clk 0:01:49]} 19. Rb4 {[%clk 0:01:21]}  Bxg2 {[%clk 0:01:47]} 20. Kxg2 {[%clk 0:01:21]}  Rfe8 {[%clk 0:01:43]} 21. Kf3 {[%clk 0:01:19]}  Re7 {[%clk 0:01:33]} 22. Rc1 {[%clk 0:01:19]}  Rae8 {[%clk 0:01:26]} 23. Rc7 {[%clk 0:01:19]}  Rxe2 {[%clk 0:01:25]} 24. Rbxb7 {[%clk 0:01:08]}  Rxb2 {[%clk 0:01:22]} 25. Rxb2 {[%clk 0:00:55]}  Bxb2 {[%clk 0:01:23]} 26. Ra7 {[%clk 0:00:55]}  g5 {[%clk 0:01:10]} 27. Bxg5 {[%clk 0:00:55]}  Re6 {[%clk 0:01:10]} 28. Be3 {[%clk 0:00:53]}  Kg7 {[%clk 0:00:59]} 29. g4 {[%clk 0:00:40]}  h6 {[%clk 0:00:58]} 30. h4 {[%clk 0:00:38]}  Bc3 {[%clk 0:00:56]} 31. h5 {[%clk 0:00:33]}  Bb2 {[%clk 0:00:53]} 32. a5 {[%clk 0:00:28]}  Bc3 {[%clk 0:00:51]} 33. Bb6 {[%clk 0:00:29]}  Rf6+ {[%clk 0:00:29]} 34. Ke4 {[%clk 0:00:28]}  Re6+ {[%clk 0:00:19]} 35. Kd3 {[%clk 0:00:28]}  Be1 {[%clk 0:00:18]} 36. Rxa6 {[%clk 0:00:26]}  Kh7 {[%clk 0:00:10]} 37. Ra7 {[%clk 0:00:25]}  Kg8 {[%clk 0:00:09]} 38. Bd4 {[%clk 0:00:20]}  f5 {[%clk 0:00:08]} 39. gxf5 {[%clk 0:00:19]}  Rd6 {[%clk 0:00:08]} 40. Ke4 {[%clk 0:00:19]}  Rxd4+ {[%clk 0:00:08]} 41. Ke5 {[%clk 0:00:06]}  Bc3 {[%clk 0:00:07]} 42. Ke6 {[%clk 0:00:02]}  Re4+ {[%clk 0:00:05]} 43. Kd5 {[%clk 0:00:03]}  Re5+ {[%clk 0:00:04]} 44. Kd6 {[%clk 0:00:02]}  Rxa5 {[%clk 0:00:04]} 45. Rxa5 {[%clk 0:00:02]}  Bxa5 {[%clk 0:00:05]} 46. Ke7 {[%clk 0:00:03]}  Bb4+ {[%clk 0:00:05]} 47. Ke6 {[%clk 0:00:03]}  Kf8 {[%clk 0:00:04]} 48. f6 {[%clk 0:00:04]}  Be1 {[%clk 0:00:04]} 49. f4 {[%clk 0:00:04]}  Bh4 {[%clk 0:00:04]} 50. f5 {[%clk 0:00:04]}  Bg5 {[%clk 0:00:04]} 51. f7 {[%clk 0:00:04]}  Bh4 {[%clk 0:00:04]} 52. f6 {[%clk 0:00:05]}  Bg5 {[%clk 0:00:04]} 53. Ke5 {[%clk 0:00:05]}  Kxf7 {[%clk 0:00:05]} 54. Kf5 {[%clk 0:00:06]}  Bxf6 {[%clk 0:00:05]} 55. Kg4 {[%clk 0:00:07]}  Bg5 {[%clk 0:00:06]} 56. Kh3 {[%clk 0:00:07]}  Ke6 {[%clk 0:00:06]} 57. Kh2 {[%clk 0:00:08]}  Kf5 {[%clk 0:00:07]} 58. Kh1 {[%clk 0:00:09]}  Kg4 {[%clk 0:00:08]} 59. Kg1 {[%clk 0:00:10]}  Kxh5 {[%clk 0:00:09]} 60. Kh1 {[%clk 0:00:11]}  Kg4 {[%clk 0:00:10]} 61. Kg1 {[%clk 0:00:12]}  h5 {[%clk 0:00:11]} 62. Kh1 {[%clk 0:00:13]}  h4 {[%clk 0:00:12]} 63. Kg1 {[%clk 0:00:13]}  h3 {[%clk 0:00:13]} 64. Kh1 {[%clk 0:00:14]}  Kg3 {[%clk 0:00:14]} 65. Kg1 {[%clk 0:00:15]}  h2+ {[%clk 0:00:15]} 66. Kh1 {[%clk 0:00:16]}  Kh3 {[%clk 0:00:15]} 1/2-1/2


[Site "https://www.chess.com"]

[Event "Titled Tuesday Blitz November 2 2021"]
[White "Jobava, Baadur"]
[Black "Yanchenko, Roman"]
[WhiteFideId "13601520"]
[BlackFideId "4137329"]
[WhiteElo "2731"]
[BlackElo "2514"]
[Result "1-0"]
[Round "08"]
[TimeControl "180+1"]
[Date "2021.11.02"]
[WhiteClock "0:00:19"]
[BlackClock "0:00:32"]

1. e4 {[%clk 0:03:00]}  e6 {[%clk 0:03:00]} 2. d4 {[%clk 0:02:59]}  d5 {[%clk 0:03:00]} 3. Nc3 {[%clk 0:03:00]}  Bb4 {[%clk 0:03:00]} 4. Ne2 {[%clk 0:03:00]}  Nf6 {[%clk 0:02:59]} 5. a3 {[%clk 0:03:00]}  Bxc3+ {[%clk 0:02:59]} 6. Nxc3 {[%clk 0:03:01]}  dxe4 {[%clk 0:02:59]} 7. Bg5 {[%clk 0:02:58]}  Nbd7 {[%clk 0:02:59]} 8. Nxe4 {[%clk 0:02:58]}  h6 {[%clk 0:02:59]} 9. Nxf6+ {[%clk 0:02:56]}  Nxf6 {[%clk 0:02:59]} 10. Bh4 {[%clk 0:02:56]}  O-O {[%clk 0:02:58]} 11. Bd3 {[%clk 0:02:21]}  b6 {[%clk 0:02:57]} 12. Qf3 {[%clk 0:02:10]}  Rb8 {[%clk 0:02:57]} 13. Bxf6 {[%clk 0:02:02]}  Qxf6 {[%clk 0:02:57]} 14. Qxf6 {[%clk 0:02:02]}  gxf6 {[%clk 0:02:58]} 15. O-O-O {[%clk 0:02:01]}  Bb7 {[%clk 0:02:57]} 16. Rhe1 {[%clk 0:01:58]}  f5 {[%clk 0:02:49]} 17. g3 {[%clk 0:01:57]}  Rfd8 {[%clk 0:02:48]} 18. c3 {[%clk 0:01:55]}  Rbc8 {[%clk 0:02:48]} 19. Re5 {[%clk 0:01:49]}  c5 {[%clk 0:02:45]} 20. dxc5 {[%clk 0:01:50]}  Rxc5 {[%clk 0:02:45]} 21. Rxc5 {[%clk 0:01:48]}  bxc5 {[%clk 0:02:46]} 22. Be2 {[%clk 0:01:47]}  Rxd1+ {[%clk 0:02:29]} 23. Kxd1 {[%clk 0:01:48]}  Kf8 {[%clk 0:02:29]} 24. b4 {[%clk 0:01:47]}  cxb4 {[%clk 0:02:27]} 25. cxb4 {[%clk 0:01:39]}  e5 {[%clk 0:02:24]} 26. Kd2 {[%clk 0:01:40]}  Ke7 {[%clk 0:02:22]} 27. Kc3 {[%clk 0:01:39]}  Kd6 {[%clk 0:02:21]} 28. a4 {[%clk 0:01:39]}  f6 {[%clk 0:02:18]} 29. a5 {[%clk 0:01:34]}  Bd5 {[%clk 0:02:17]} 30. Bd3 {[%clk 0:01:27]}  Be6 {[%clk 0:02:14]} 31. Bc4 {[%clk 0:01:27]}  Bd7 {[%clk 0:02:14]} 32. Bd3 {[%clk 0:01:15]}  Kd5 {[%clk 0:01:57]} 33. Bc2 {[%clk 0:01:13]}  e4 {[%clk 0:01:51]} 34. Bd1 {[%clk 0:00:46]}  Bc8 {[%clk 0:01:42]} 35. Be2 {[%clk 0:00:40]}  Ke5 {[%clk 0:01:25]} 36. b5 {[%clk 0:00:28]}  f4 {[%clk 0:01:23]} 37. gxf4+ {[%clk 0:00:25]}  Kxf4 {[%clk 0:01:23]} 38. Kd4 {[%clk 0:00:26]}  f5 {[%clk 0:01:21]} 39. a6 {[%clk 0:00:24]}  Kg5 {[%clk 0:01:03]} 40. Ke5 {[%clk 0:00:21]}  h5 {[%clk 0:00:57]} 41. Bc4 {[%clk 0:00:19]}  Bd7 {[%clk 0:00:42]} 42. b6 {[%clk 0:00:18]}  axb6 {[%clk 0:00:34]} 43. a7 {[%clk 0:00:19]}  Bc6 {[%clk 0:00:33]} 44. Bd5 {[%clk 0:00:19]}  e3 {[%clk 0:00:32]} 45. fxe3 {[%clk 0:00:19]} 1-0


[Site "https://www.chess.com"]

[Event "Titled Tuesday Blitz November 2 2021"]
[White "Kaasen, Tor Fredrik"]
[Black "Terry, Renato"]
[WhiteFideId "1516647"]
[BlackFideId "3803457"]
[WhiteElo "2349"]
[BlackElo "2577"]
[Result "0-1"]
[Round "08"]
[TimeControl "180+1"]
[Date "2021.11.02"]
[WhiteClock "0:00:02"]
[BlackClock "0:00:04"]

1. e4 {[%clk 0:03:00]}  e6 {[%clk 0:03:00]} 2. d4 {[%clk 0:03:00]}  d5 {[%clk 0:03:00]} 3. Nc3 {[%clk 0:03:00]}  Nf6 {[%clk 0:03:01]} 4. e5 {[%clk 0:03:00]}  Nfd7 {[%clk 0:03:01]} 5. f4 {[%clk 0:03:01]}  c5 {[%clk 0:03:02]} 6. Nf3 {[%clk 0:03:02]}  Nc6 {[%clk 0:03:03]} 7. Be3 {[%clk 0:03:02]}  Be7 {[%clk 0:03:03]} 8. Qd2 {[%clk 0:03:02]}  O-O {[%clk 0:03:04]} 9. dxc5 {[%clk 0:03:02]}  Qa5 {[%clk 0:03:03]} 10. a3 {[%clk 0:03:02]}  Nxc5 {[%clk 0:02:59]} 11. O-O-O {[%clk 0:03:02]}  Rd8 {[%clk 0:02:58]} 12. Kb1 {[%clk 0:03:01]}  Ne4 {[%clk 0:02:57]} 13. Nxe4 {[%clk 0:02:49]}  dxe4 {[%clk 0:02:58]} 14. Nd4 {[%clk 0:02:48]}  Qxd2 {[%clk 0:02:44]} 15. Rxd2 {[%clk 0:02:49]}  Bd7 {[%clk 0:02:45]} 16. c3 {[%clk 0:02:23]}  Bc5 {[%clk 0:02:22]} 17. Be2 {[%clk 0:02:09]}  Nxd4 {[%clk 0:02:08]} 18. Bxd4 {[%clk 0:02:10]}  Ba4 {[%clk 0:02:08]} 19. Re1 {[%clk 0:01:38]}  Bxd4 {[%clk 0:01:58]} 20. cxd4 {[%clk 0:01:33]}  Rac8 {[%clk 0:01:57]} 21. Bd1 {[%clk 0:01:32]}  Bxd1 {[%clk 0:01:17]} 22. Rdxd1 {[%clk 0:01:33]}  Rc4 {[%clk 0:01:10]} 23. Rxe4 {[%clk 0:01:34]}  Kf8 {[%clk 0:01:09]} 24. b3 {[%clk 0:01:27]}  Rc3 {[%clk 0:01:07]} 25. Kb2 {[%clk 0:01:28]}  Rdc8 {[%clk 0:01:07]} 26. Re2 {[%clk 0:01:29]}  Ke7 {[%clk 0:00:50]} 27. d5 {[%clk 0:01:26]}  exd5 {[%clk 0:00:51]} 28. Rxd5 {[%clk 0:01:26]}  R3c7 {[%clk 0:00:52]} 29. f5 {[%clk 0:01:25]}  h5 {[%clk 0:00:48]} 30. f6+ {[%clk 0:01:22]}  Kf8 {[%clk 0:00:33]} 31. a4 {[%clk 0:01:20]}  Kg8 {[%clk 0:00:29]} 32. Red2 {[%clk 0:01:16]}  Kh7 {[%clk 0:00:26]} 33. fxg7 {[%clk 0:01:14]}  Kxg7 {[%clk 0:00:27]} 34. e6 {[%clk 0:01:15]}  fxe6 {[%clk 0:00:25]} 35. Rxh5 {[%clk 0:01:15]}  Kg6 {[%clk 0:00:24]} 36. Re5 {[%clk 0:01:13]}  Kf6 {[%clk 0:00:24]} 37. Re3 {[%clk 0:01:13]}  Rc6 {[%clk 0:00:25]} 38. Rf2+ {[%clk 0:01:13]}  Ke7 {[%clk 0:00:25]} 39. h4 {[%clk 0:01:12]}  Rh8 {[%clk 0:00:24]} 40. Rh3 {[%clk 0:01:12]}  Rg8 {[%clk 0:00:21]} 41. h5 {[%clk 0:01:10]}  Rc5 {[%clk 0:00:22]} 42. h6 {[%clk 0:01:10]}  Rcg5 {[%clk 0:00:22]} 43. h7 {[%clk 0:01:02]}  Rh8 {[%clk 0:00:22]} 44. Rh6 {[%clk 0:00:57]}  Rg7 {[%clk 0:00:16]} 45. Rc2 {[%clk 0:00:53]}  Kd7 {[%clk 0:00:15]} 46. Rd2+ {[%clk 0:00:53]}  Ke7 {[%clk 0:00:15]} 47. Re2 {[%clk 0:00:52]}  Kd7 {[%clk 0:00:16]} 48. Rhxe6 {[%clk 0:00:44]}  Rhxh7 {[%clk 0:00:16]} 49. R6e4 {[%clk 0:00:41]}  Rh2 {[%clk 0:00:15]} 50. Rd4+ {[%clk 0:00:40]}  Kc8 {[%clk 0:00:03]} 51. Rc2+ {[%clk 0:00:40]}  Rc7 {[%clk 0:00:03]} 52. Rxc7+ {[%clk 0:00:41]}  Kxc7 {[%clk 0:00:04]} 53. Rg4 {[%clk 0:00:42]}  Rh1 {[%clk 0:00:03]} 54. Rg6 {[%clk 0:00:41]}  a5 {[%clk 0:00:03]} 55. g4 {[%clk 0:00:39]}  Rg1 {[%clk 0:00:03]} 56. g5 {[%clk 0:00:39]}  Rg3 {[%clk 0:00:03]} 57. Rg8 {[%clk 0:00:36]}  b6 {[%clk 0:00:03]} 58. Kc2 {[%clk 0:00:35]}  Kb7 {[%clk 0:00:04]} 59. Rg6 {[%clk 0:00:28]}  Kc7 {[%clk 0:00:04]} 60. Rg7+ {[%clk 0:00:28]}  Kc6 {[%clk 0:00:04]} 61. g6 {[%clk 0:00:24]}  Kc5 {[%clk 0:00:04]} 62. Rc7+ {[%clk 0:00:23]}  Kd6 {[%clk 0:00:04]} 63. Rg7 {[%clk 0:00:18]}  Kc5 {[%clk 0:00:04]} 64. Rc7+ {[%clk 0:00:16]}  Kb4 {[%clk 0:00:02]} 65. g7 {[%clk 0:00:15]}  Rg2+ {[%clk 0:00:02]} 66. Kd3 {[%clk 0:00:14]}  Kxb3 {[%clk 0:00:03]} 67. Rb7 {[%clk 0:00:07]}  Kxa4 {[%clk 0:00:02]} 68. Rxb6 {[%clk 0:00:07]}  Rxg7 {[%clk 0:00:03]} 69. Kc2 {[%clk 0:00:08]}  Rg2+ {[%clk 0:00:03]} 70. Kb1 {[%clk 0:00:08]}  Ka3 {[%clk 0:00:03]} 71. Rb8 {[%clk 0:00:08]}  Rg1+ {[%clk 0:00:03]} 72. Kc2 {[%clk 0:00:08]}  Rg2+ {[%clk 0:00:04]} 73. Kb1 {[%clk 0:00:08]}  Rf2 {[%clk 0:00:05]} 74. Re8 {[%clk 0:00:07]}  Rf1+ {[%clk 0:00:05]} 75. Kc2 {[%clk 0:00:08]}  a4 {[%clk 0:00:05]} 76. Re3+ {[%clk 0:00:07]}  Ka2 {[%clk 0:00:05]} 77. Re8 {[%clk 0:00:07]}  Rf2+ {[%clk 0:00:05]} 78. Kc1 {[%clk 0:00:07]}  Rf7 {[%clk 0:00:05]} 79. Rc8 {[%clk 0:00:07]}  Rf1+ {[%clk 0:00:04]} 80. Kc2 {[%clk 0:00:07]}  Rh1 {[%clk 0:00:05]} 81. Rc7 {[%clk 0:00:06]}  Rh2+ {[%clk 0:00:04]} 82. Kc1 {[%clk 0:00:07]}  Rh5 {[%clk 0:00:05]} 83. Kc2 {[%clk 0:00:07]}  Rb5 {[%clk 0:00:04]} 84. Rc8 {[%clk 0:00:07]}  a3 {[%clk 0:00:02]} 85. Rc7 {[%clk 0:00:06]}  Rd5 {[%clk 0:00:02]} 86. Rc8 {[%clk 0:00:06]}  Rg5 {[%clk 0:00:03]} 87. Rc7 {[%clk 0:00:06]}  Rg2+ {[%clk 0:00:03]} 88. Kc1 {[%clk 0:00:07]}  Rb2 {[%clk 0:00:03]} 89. Rc8 {[%clk 0:00:07]}  Rb1+ {[%clk 0:00:04]} 90. Kc2 {[%clk 0:00:07]}  Ka1 {[%clk 0:00:05]} 91. Rc5 {[%clk 0:00:06]}  Rh1 {[%clk 0:00:04]} 92. Ra5 {[%clk 0:00:06]}  Rh2+ {[%clk 0:00:05]} 93. Kb3 {[%clk 0:00:06]}  Rh3+ {[%clk 0:00:04]} 94. Kc2 {[%clk 0:00:06]}  Ka2 {[%clk 0:00:05]} 95. Rb5 {[%clk 0:00:06]}  Rh2+ {[%clk 0:00:05]} 96. Kc1 {[%clk 0:00:06]}  Rb2 {[%clk 0:00:06]} 97. Ra5 {[%clk 0:00:05]}  Rf2 {[%clk 0:00:02]} 98. Ra8 {[%clk 0:00:05]}  Rg2 {[%clk 0:00:03]} 99. Ra7 {[%clk 0:00:05]}  Rg3 {[%clk 0:00:03]} 100. Ra8 {[%clk 0:00:05]}  Rc3+ {[%clk 0:00:04]} 101. Kd2 {[%clk 0:00:05]}  Kb2 {[%clk 0:00:04]} 102. Ra7 {[%clk 0:00:02]}  Rb3 {[%clk 0:00:04]} 0-1


[Site "https://www.chess.com"]

[Event "Titled Tuesday Blitz November 2 2021"]
[White "Matinian, Nikita"]
[Black "Kovalenko, Igor"]
[WhiteFideId "24129100"]
[BlackFideId "14117908"]
[WhiteElo "2464"]
[BlackElo "2629"]
[Result "0-1"]
[Round "08"]
[TimeControl "180+1"]
[Date "2021.11.02"]
[WhiteClock "0:00:01"]
[BlackClock "0:00:16"]

1. e4 {[%clk 0:03:00]}  e6 {[%clk 0:03:00]} 2. d4 {[%clk 0:03:00]}  d5 {[%clk 0:03:00]} 3. Nc3 {[%clk 0:03:01]}  Bb4 {[%clk 0:03:00]} 4. Ne2 {[%clk 0:03:01]}  Nc6 {[%clk 0:02:56]} 5. a3 {[%clk 0:02:55]}  Ba5 {[%clk 0:02:56]} 6. b4 {[%clk 0:02:54]}  Bb6 {[%clk 0:02:56]} 7. Bb2 {[%clk 0:02:49]}  Nf6 {[%clk 0:02:53]} 8. e5 {[%clk 0:02:44]}  Nd7 {[%clk 0:02:52]} 9. Na4 {[%clk 0:02:34]}  f6 {[%clk 0:02:51]} 10. Nf4 {[%clk 0:02:25]}  Qe7 {[%clk 0:02:49]} 11. Qh5+ {[%clk 0:02:23]}  g6 {[%clk 0:02:43]} 12. Nxg6 {[%clk 0:02:20]}  Qf7 {[%clk 0:02:43]} 13. Nxb6 {[%clk 0:02:09]}  axb6 {[%clk 0:02:41]} 14. Bd3 {[%clk 0:01:47]}  fxe5 {[%clk 0:02:39]} 15. dxe5 {[%clk 0:01:48]}  Rg8 {[%clk 0:02:30]} 16. Nf4 {[%clk 0:01:47]}  Qxh5 {[%clk 0:02:30]} 17. Nxh5 {[%clk 0:01:48]}  Ndxe5 {[%clk 0:02:26]} 18. Nf6+ {[%clk 0:01:42]}  Kf7 {[%clk 0:02:26]} 19. Nxg8 {[%clk 0:01:42]}  Nxd3+ {[%clk 0:02:26]} 20. cxd3 {[%clk 0:01:43]}  Kxg8 {[%clk 0:02:27]} 21. Kd2 {[%clk 0:01:40]}  Ne7 {[%clk 0:02:24]} 22. Rac1 {[%clk 0:01:37]}  c6 {[%clk 0:02:24]} 23. f4 {[%clk 0:01:36]}  Bd7 {[%clk 0:02:23]} 24. Rhf1 {[%clk 0:01:28]}  h5 {[%clk 0:02:21]} 25. g3 {[%clk 0:01:22]}  Kf7 {[%clk 0:02:12]} 26. Bd4 {[%clk 0:01:16]}  b5 {[%clk 0:02:10]} 27. Rce1 {[%clk 0:01:08]}  Nf5 {[%clk 0:02:08]} 28. Bb2 {[%clk 0:01:04]}  b6 {[%clk 0:02:06]} 29. Rc1 {[%clk 0:00:58]}  Ke7 {[%clk 0:02:05]} 30. Rg1 {[%clk 0:00:54]}  Rg8 {[%clk 0:02:04]} 31. Rce1 {[%clk 0:00:49]}  c5 {[%clk 0:02:03]} 32. Kc2 {[%clk 0:00:32]}  d4 {[%clk 0:01:57]} 33. Re5 {[%clk 0:00:26]}  Kd6 {[%clk 0:01:58]} 34. Rge1 {[%clk 0:00:24]}  Rg6 {[%clk 0:01:53]} 35. Rg1 {[%clk 0:00:18]}  Bc6 {[%clk 0:01:50]} 36. Kd2 {[%clk 0:00:18]}  Bd5 {[%clk 0:01:49]} 37. Ke1 {[%clk 0:00:12]}  Rg8 {[%clk 0:01:30]} 38. Kf2 {[%clk 0:00:12]}  Rc8 {[%clk 0:01:29]} 39. Rc1 {[%clk 0:00:12]}  Rg8 {[%clk 0:01:25]} 40. Rg1 {[%clk 0:00:06]}  c4 {[%clk 0:01:13]} 41. Rxf5 {[%clk 0:00:06]}  exf5 {[%clk 0:01:13]} 42. Bxd4 {[%clk 0:00:06]}  cxd3 {[%clk 0:01:14]} 43. Bxb6 {[%clk 0:00:02]}  Bc4 {[%clk 0:00:54]} 44. Bc5+ {[%clk 0:00:03]}  Kd5 {[%clk 0:00:54]} 45. Re1 {[%clk 0:00:04]}  Bb3 {[%clk 0:00:53]} 46. Ke3 {[%clk 0:00:03]}  Kc4 {[%clk 0:00:51]} 47. Kd2 {[%clk 0:00:03]}  Ra8 {[%clk 0:00:49]} 48. Ra1 {[%clk 0:00:03]}  Bc2 {[%clk 0:00:40]} 49. Be3 {[%clk 0:00:02]}  Kb3 {[%clk 0:00:40]} 50. Bc5 {[%clk 0:00:03]}  Rg8 {[%clk 0:00:34]} 51. Re1 {[%clk 0:00:02]}  h4 {[%clk 0:00:32]} 52. Rg1 {[%clk 0:00:02]}  hxg3 {[%clk 0:00:32]} 53. Rxg3 {[%clk 0:00:02]}  Rh8 {[%clk 0:00:31]} 54. h3 {[%clk 0:00:03]}  Kxa3 {[%clk 0:00:31]} 55. Kc3 {[%clk 0:00:03]}  Ka2 {[%clk 0:00:27]} 56. Re3 {[%clk 0:00:02]}  Rd8 {[%clk 0:00:23]} 57. Kd2 {[%clk 0:00:02]}  Kb3 {[%clk 0:00:21]} 58. h4 {[%clk 0:00:02]}  Rg8 {[%clk 0:00:20]} 59. Rh3 {[%clk 0:00:01]}  Rg2+ {[%clk 0:00:20]} 60. Ke1 {[%clk 0:00:02]}  Kb2 {[%clk 0:00:17]} 61. Bd4+ {[%clk 0:00:02]}  Kb3 {[%clk 0:00:17]} 62. Kf1 {[%clk 0:00:02]}  Kc4 {[%clk 0:00:15]} 63. Kxg2 {[%clk 0:00:02]}  d2 {[%clk 0:00:15]} 64. Rc3+ {[%clk 0:00:01]}  Kxd4 {[%clk 0:00:16]} 0-1


[Site "https://www.chess.com"]

[Event "Titled Tuesday Blitz November 2 2021"]
[White "Naroditsky, Daniel"]
[Black "Andreikin, Dmitry"]
[WhiteFideId "2026961"]
[BlackFideId "4158814"]
[WhiteElo "2608"]
[BlackElo "2736"]
[Result "1/2-1/2"]
[Round "08"]
[TimeControl "180+1"]
[Date "2021.11.02"]
[WhiteClock "0:00:42"]
[BlackClock "0:00:39"]

1. e4 {[%clk 0:03:00]}  g6 {[%clk 0:03:00]} 2. d4 {[%clk 0:02:59]}  Bg7 {[%clk 0:03:01]} 3. Nc3 {[%clk 0:02:59]}  c6 {[%clk 0:03:01]} 4. Be3 {[%clk 0:02:58]}  Nf6 {[%clk 0:03:00]} 5. f3 {[%clk 0:02:48]}  d6 {[%clk 0:02:50]} 6. Qd2 {[%clk 0:02:49]}  b5 {[%clk 0:02:50]} 7. Bh6 {[%clk 0:02:48]}  Bxh6 {[%clk 0:02:49]} 8. Qxh6 {[%clk 0:02:49]}  Qa5 {[%clk 0:02:45]} 9. Bd3 {[%clk 0:02:44]}  b4 {[%clk 0:02:36]} 10. Nd1 {[%clk 0:02:44]}  b3+ {[%clk 0:02:31]} 11. Nc3 {[%clk 0:02:44]}  bxc2 {[%clk 0:02:22]} 12. Bxc2 {[%clk 0:02:42]}  Na6 {[%clk 0:02:20]} 13. Ne2 {[%clk 0:02:25]}  Nb4 {[%clk 0:02:19]} 14. Bb1 {[%clk 0:02:26]}  Ba6 {[%clk 0:02:13]} 15. O-O {[%clk 0:02:26]}  Rb8 {[%clk 0:02:09]} 16. a3 {[%clk 0:02:22]}  Nd3 {[%clk 0:01:57]} 17. Bxd3 {[%clk 0:02:02]}  Bxd3 {[%clk 0:01:58]} 18. b4 {[%clk 0:02:01]}  Qh5 {[%clk 0:01:55]} 19. Qe3 {[%clk 0:01:54]}  Bxe2 {[%clk 0:01:54]} 20. Nxe2 {[%clk 0:01:52]}  O-O {[%clk 0:01:53]} 21. Rac1 {[%clk 0:01:50]}  a5 {[%clk 0:01:41]} 22. bxa5 {[%clk 0:01:29]}  Rfc8 {[%clk 0:01:41]} 23. e5 {[%clk 0:01:26]}  Nd5 {[%clk 0:01:38]} 24. Qe4 {[%clk 0:01:19]}  Ra8 {[%clk 0:01:32]} 25. Nf4 {[%clk 0:01:09]}  Nxf4 {[%clk 0:01:23]} 26. Qxf4 {[%clk 0:01:10]}  dxe5 {[%clk 0:01:20]} 27. dxe5 {[%clk 0:01:11]}  Rxa5 {[%clk 0:01:18]} 28. e6 {[%clk 0:01:12]}  fxe6 {[%clk 0:01:14]} 29. Qb4 {[%clk 0:01:09]}  Kf7 {[%clk 0:00:59]} 30. Rfe1 {[%clk 0:01:06]}  Qb5 {[%clk 0:00:50]} 31. Qh4 {[%clk 0:01:02]}  Qh5 {[%clk 0:00:46]} 32. Qe4 {[%clk 0:00:55]}  Qf5 {[%clk 0:00:41]} 33. Qh4 {[%clk 0:00:55]}  Qh5 {[%clk 0:00:39]} 34. Qe4 {[%clk 0:00:48]}  Qf5 {[%clk 0:00:39]} 35. Qh4 {[%clk 0:00:42]}  Qh5 {[%clk 0:00:39]} 1/2-1/2


[Site "https://www.chess.com"]

[Event "Titled Tuesday Blitz November 2 2021"]
[White "Ovchinnikov, Vsevolod"]
[Black "Schmakel, Sam"]
[WhiteFideId "24176842"]
[BlackFideId "2039311"]
[WhiteElo "2376"]
[BlackElo "2356"]
[Result "0-1"]
[Round "08"]
[TimeControl "180+1"]
[Date "2021.11.02"]
[WhiteClock "0:00:12"]
[BlackClock "0:00:05"]

1. d4 {[%clk 0:03:00]}  Nf6 {[%clk 0:02:59]} 2. c4 {[%clk 0:03:00]}  g6 {[%clk 0:02:59]} 3. Nc3 {[%clk 0:03:00]}  d5 {[%clk 0:03:00]} 4. Nf3 {[%clk 0:03:00]}  Bg7 {[%clk 0:03:00]} 5. h4 {[%clk 0:03:01]}  c6 {[%clk 0:02:52]} 6. Bg5 {[%clk 0:03:00]}  O-O {[%clk 0:02:46]} 7. e3 {[%clk 0:03:00]}  Bf5 {[%clk 0:02:41]} 8. Bxf6 {[%clk 0:02:51]}  Bxf6 {[%clk 0:02:40]} 9. cxd5 {[%clk 0:02:52]}  cxd5 {[%clk 0:02:40]} 10. Qb3 {[%clk 0:02:52]}  e6 {[%clk 0:02:41]} 11. Qxb7 {[%clk 0:01:46]}  Nd7 {[%clk 0:02:40]} 12. Bb5 {[%clk 0:01:46]}  Nb6 {[%clk 0:02:41]} 13. h5 {[%clk 0:01:40]}  Qd6 {[%clk 0:02:19]} 14. Qa6 {[%clk 0:01:32]}  Qb4 {[%clk 0:02:10]} 15. Qa3 {[%clk 0:01:29]}  a5 {[%clk 0:01:39]} 16. hxg6 {[%clk 0:01:22]}  hxg6 {[%clk 0:01:39]} 17. O-O {[%clk 0:01:18]}  Rfc8 {[%clk 0:01:35]} 18. Rfc1 {[%clk 0:01:14]}  Qxa3 {[%clk 0:01:32]} 19. bxa3 {[%clk 0:01:14]}  Nc4 {[%clk 0:01:33]} 20. Bxc4 {[%clk 0:01:14]}  Rxc4 {[%clk 0:01:34]} 21. Nd2 {[%clk 0:01:13]}  Rcc8 {[%clk 0:01:29]} 22. Nb5 {[%clk 0:01:10]}  Be7 {[%clk 0:01:23]} 23. a4 {[%clk 0:01:04]}  Bd3 {[%clk 0:01:05]} 24. Nb3 {[%clk 0:01:01]}  Bc4 {[%clk 0:00:24]} 25. Nd2 {[%clk 0:00:30]}  Bd3 {[%clk 0:00:25]} 26. Rxc8+ {[%clk 0:00:29]}  Rxc8 {[%clk 0:00:26]} 27. Nb3 {[%clk 0:00:29]}  Rc4 {[%clk 0:00:17]} 28. Rc1 {[%clk 0:00:15]}  Rxa4 {[%clk 0:00:15]} 29. Nc3 {[%clk 0:00:16]}  Ra3 {[%clk 0:00:12]} 30. Nc5 {[%clk 0:00:12]}  Bc4 {[%clk 0:00:11]} 31. Rc2 {[%clk 0:00:12]}  Kf8 {[%clk 0:00:07]} 32. f4 {[%clk 0:00:12]}  Ke8 {[%clk 0:00:08]} 33. Kf2 {[%clk 0:00:12]}  Bxc5 {[%clk 0:00:07]} 34. dxc5 {[%clk 0:00:12]}  Kd7 {[%clk 0:00:08]} 35. g4 {[%clk 0:00:11]}  Kc6 {[%clk 0:00:08]} 36. g5 {[%clk 0:00:11]}  Kxc5 {[%clk 0:00:08]} 37. Kf3 {[%clk 0:00:12]}  Kb4 {[%clk 0:00:08]} 38. Nd1 {[%clk 0:00:10]}  Rxa2 {[%clk 0:00:07]} 39. Rc1 {[%clk 0:00:11]}  a4 {[%clk 0:00:07]} 40. Nf2 {[%clk 0:00:11]}  a3 {[%clk 0:00:07]} 41. Ng4 {[%clk 0:00:12]}  Rb2 {[%clk 0:00:06]} 42. Ne5 {[%clk 0:00:12]}  a2 {[%clk 0:00:06]} 43. Nc6+ {[%clk 0:00:12]}  Ka3 {[%clk 0:00:05]} 44. Ra1 {[%clk 0:00:12]}  Rb1 {[%clk 0:00:05]} 0-1


[Site "https://www.chess.com"]